[Event "Delancey UK Schools 2019 U14"]
[Site "Daventry"]
[Date "2019.09.24"]
[Round "1.9"]
[White "Cox, Toby"]
[Black "Headlong, Georgia"]
[Result "1-0"]
[ECO "C36"]
[WhiteElo "1616"]
[BlackElo "1464"]
[Annotator "NA"]
[PlyCount "67"]
[EventDate "2019.09.24"]
[EventCountry "GBR"]
[SourceTitle "playchess.com"]
[Source "ChessBase"]
[SourceQuality "1"]
[TimeControl "40/5400+30:1800+30"]

1. e4 {[%emt 1:10:13]} e5 {[%emt 1:10:11]} 2. f4 {[%emt 0:00:21]} d5 {[%emt 0:00:22]} 3. exd5 {[%emt 0:00:24]} exf4 {[%emt 0:00:22]} 4. Nf3 {[%emt 0:00:22]} Nf6 {[%emt 0:00:23]} 5. Bb5+ {[%emt 0:00:21]} c6 {[%emt 0:00:48]} 6. dxc6 {[%emt 0:00:21]} Nxc6 {[%emt 0:00:59]} 7. d4 {[%emt 0:00:22]} Bd6 {[%emt 0:00:46]} 8. Qe2+ {[%emt 0:01:19]} Be6 {[%emt 0:01:17]} 9. Ng5 {[%emt 0:00:41]} O-O {[%emt 0:00:42]} 10. Nxe6 {[%emt 0:00:29]} fxe6 {[%emt 0:00:23]} 11. Bxc6 {[%emt 0:00:21]} bxc6 {[%emt 0:00:56]} 12. O-O {[%emt 0:00:22]} Re8 {[%emt 0:01:32]} 13. Bxf4 {[%emt 0:02:15]} Rb8 {[%emt 0:01:58]} 14. c3 {[%emt 0:01:38]} Bxf4 {[%emt 0:01:31]} 15. Rxf4 {[%emt 0:00:21]} Qb6 {[%emt 0:00:30]} 16. Rf2 {[%emt 0:01:20]} c5 {[%emt 0:05:24]} 17. dxc5 {[%emt 0:05:23]} Qxc5 {[%emt 0:00:31]} 18. c4 {[%emt 0:00:27]} Rb6 {[%emt 0:02:18]} 19. Nc3 {[%emt 0:00:44]} Reb8 {[%emt 0:00:47]} 20. Na4 {[%emt 0:01:28]} Qd4 {[%emt 0:01:06]} 21. Rd1 {[%emt 0:00:40]} Qh4 {[%emt 0:02:15]} 22. Nxb6 {[%emt 0:00:43]} Ng4 {[%emt 0:01:11]} 23. Qxe6+ {[%emt 0:01:15]} Kh8 {[%emt 0:00:38]} 24. g3 {[%emt 0:00:22]} Qh5 {[%emt 0:01:20]} 25. Qd6 {[%emt 0:00:30]} Qe8 {[%emt 0:01:15]} 26. Re2 {[%emt 0:01:29]} Qg8 {[%emt 0:02:41]} 27. Red2 {[%emt 0:02:29]} Rxb6 {[%emt 0:00:59]} 28. Qxb6 {[%emt 0:00:23]} axb6 {[%emt 0:00:29]} 29. Rd8 {[%emt 0:00:21]} Ne3 {[%emt 0:00:29]} 30. Rxg8+ {[%emt 0:00:24]} Kxg8 {[%emt 0:00:22]} 31. Rd6 {[%emt 0:00:25]} Nxc4 {[%emt 0:00:23]} 32. Rc6 {[%emt 0:00:23]} Nxb2 {[%emt 0:00:24]} 33. Rxb6 {[%emt 0:00:23]} Kf7 {[%emt 0:00:24]} 34. Rxb2 {[%emt 0:00:22]} 1-0

[Event "Delancey UK Schools 2019 U14"]
[Site "Daventry"]
[Date "2019.09.24"]
[Round "1.10"]
[White "Anika Rachna Roy"]
[Black "Volovich, Julia"]
[Result "0-1"]
[ECO "A87"]
[WhiteElo "1392"]
[BlackElo "1743"]
[Annotator "NA"]
[PlyCount "50"]
[EventDate "2019.09.24"]
[EventCountry "GBR"]
[SourceTitle "playchess.com"]
[Source "ChessBase"]
[SourceQuality "1"]
[TimeControl "40/5400+30:1800+30"]

1. d4 {[%emt 1:10:13]} f5 {[%emt 1:10:13]} 2. g3 {[%emt 0:00:26]} Nf6 {[%emt 0:00:23]} 3. Bg2 {[%emt 0:00:26]} g6 {[%emt 0:00:25]} 4. Nf3 {[%emt 0:00:24]} Bg7 {[%emt 0:00:24]} 5. O-O {[%emt 0:00:28]} O-O {[%emt 0:00:23]} 6. c4 {[%emt 0:00:24]} d6 {[%emt 0:00:23]} 7. Nc3 {[%emt 0:00:27]} Qe8 {[%emt 0:00:23]} 8. Qc2 {[%emt 0:00:28]} e5 {[%emt 0:00:34]} 9. dxe5 {[%emt 0:00:49]} dxe5 {[%emt 0:00:25]} 10. e4 {[%emt 0:00:48]} Nc6 {[%emt 0:00:36]} 11. Re1 {[%emt 0:00:42]} Be6 {[%emt 0:06:20]} 12. Nd5 {[%emt 0:04:54]} Rc8 {[%emt 0:05:56]} 13. Nxf6+ {[%emt 0:03:45]} Bxf6 {[%emt 0:02:36]} 14. Ng5 {[%emt 0:03:49]} Nd4 {[%emt 0:01:55]} 15. Qc3 {[%emt 0:01:28]} Bxg5 {[%emt 0:01:43]} 16. Bxg5 {[%emt 0:00:28]} Qf7 {[%emt 0:00:24]} 17. exf5 {[%emt 0:03:14]} Qxf5 {[%emt 0:00:35]} 18. Bf4 {[%emt 0:02:24]} exf4 {[%emt 0:03:42]} 19. Qxd4 {[%emt 0:00:28]} f3 {[%emt 0:00:21]} 20. Bxf3 {[%emt 0:00:40]} Qxf3 {[%emt 0:00:40]} 21. Rxe6 {[%emt 0:00:23]} Rcd8 {[%emt 0:00:50]} 22. Qe3 {[%emt 0:01:08]} Qf5 {[%emt 0:00:43]} 23. Re5 {[%emt 0:00:58]} Qc2 {[%emt 0:00:32]} 24. c5 {[%emt 0:02:05]} Rd3 {[%emt 0:00:33]} 25. Qe1 {[%emt 0:00:47]} Rd2 {[%emt 0:00:40]} 0-1

[Event "Delancey UK Schools 2019 U14"]
[Site "Daventry"]
[Date "2019.09.24"]
[Round "1.11"]
[White "Bansal, Saahil"]
[Black "Saunders, Aron"]
[Result "1-0"]
[ECO "D96"]
[WhiteElo "1655"]
[BlackElo "1428"]
[Annotator "NA"]
[PlyCount "122"]
[EventDate "2019.09.24"]
[EventCountry "GBR"]
[SourceTitle "playchess.com"]
[Source "ChessBase"]
[SourceQuality "1"]
[TimeControl "40/5400+30:1800+30"]

1. d4 {[%emt 1:10:11]} Nf6 {[%emt 1:10:12]} 2. c4 {[%emt 0:00:21]} g6 {[%emt 0:00:21]} 3. Nc3 {[%emt 0:00:22]} d5 {[%emt 0:00:22]} 4. Nf3 {[%emt 0:00:22]} Bg7 {[%emt 0:00:22]} 5. Qb3 {[%emt 0:00:21]} Be6 {[%emt 0:00:55]} 6. Qxb7 {[%emt 0:00:34]} Nbd7 {[%emt 0:01:35]} 7. cxd5 {[%emt 0:00:23]} Rb8 {[%emt 0:01:25]} 8. Qc6 {[%emt 0:01:11]} Rb6 {[%emt 0:01:11]} 9. Qc4 {[%emt 0:01:03]} Bf5 {[%emt 0:01:52]} 10. Bf4 {[%emt 0:01:22]} Rxb2 {[%emt 0:03:32]} 11. Nh4 {[%emt 0:01:26]} Nb6 {[%emt 0:02:05]} 12. Qxc7 {[%emt 0:01:07]} Qxc7 {[%emt 0:00:41]} 13. Bxc7 {[%emt 0:00:31]} Nbxd5 {[%emt 0:01:22]} 14. Nxd5 {[%emt 0:01:34]} Nxd5 {[%emt 0:00:21]} 15. Be5 {[%emt 0:00:23]} O-O {[%emt 0:01:23]} 16. Nxf5 {[%emt 0:01:42]} gxf5 {[%emt 0:00:22]} 17. Bxg7 {[%emt 0:00:59]} Kxg7 {[%emt 0:00:21]} 18. e3 {[%emt 0:00:21]} Rfb8 {[%emt 0:00:34]} 19. Bd3 {[%emt 0:00:31]} f4 {[%emt 0:01:41]} 20. O-O {[%emt 0:04:16]} fxe3 {[%emt 0:01:07]} 21. fxe3 {[%emt 0:04:38]} Nxe3 {[%emt 0:00:22]} 22. Rf3 {[%emt 0:00:47]} Nc2 {[%emt 0:02:20]} 23. Raf1 {[%emt 0:01:30]} f6 {[%emt 0:01:01]} 24. Rg3+ {[%emt 0:00:26]} Kf7 {[%emt 0:02:25]} 25. Bc4+ {[%emt 0:01:09]} Ke8 {[%emt 0:00:23]} 26. Be6 {[%emt 0:01:10]} Kd8 {[%emt 0:00:37]} 27. d5 {[%emt 0:01:51]} Kc7 {[%emt 0:01:15]} 28. Rc3+ {[%emt 0:00:33]} Kb6 {[%emt 0:01:09]} 29. Rc6+ {[%emt 0:00:59]} Ka5 {[%emt 0:00:34]} 30. Rc1 {[%emt 0:01:32]} Nd4 {[%emt 0:00:33]} 31. R6c5+ {[%emt 0:00:48]} R8b5 {[%emt 0:00:30]} 32. Bd7 {[%emt 0:00:49]} Ne2+ {[%emt 0:01:14]} 33. Kf1 {[%emt 0:00:21]} Nxc1 {[%emt 0:00:22]} 34. Bxb5 {[%emt 0:00:25]} Rxb5 {[%emt 0:00:31]} 35. Rxc1 {[%emt 0:00:21]} Rxd5 {[%emt 0:00:29]} 36. Rc7 {[%emt 0:00:21]} Kb6 {[%emt 0:01:44]} 37. Rxe7 {[%emt 0:00:21]} h5 {[%emt 0:00:36]} 38. Re6+ {[%emt 0:00:21]} Kc5 {[%emt 0:00:21]} 39. Rxf6 {[%emt 0:00:21]} Rd2 {[%emt 0:00:22]} 40. Rf5+ {[%emt 0:00:22]} Kd6 {[%emt 0:00:24]} 41. Ra5 {[%emt 0:30:35]} Ke6 {[%emt 0:30:46]} 42. Rxa7 {[%emt 0:00:25]} Kf5 {[%emt 0:00:23]} 43. Rf7+ {[%emt 0:00:36]} Kg6 {[%emt 0:00:28]} 44. Rf2 {[%emt 0:00:55]} Rd4 {[%emt 0:00:39]} 45. Ke1 {[%emt 0:01:04]} Ra4 {[%emt 0:00:25]} 46. Rb2 {[%emt 0:00:30]} Rh4 {[%emt 0:00:37]} 47. h3 {[%emt 0:00:38]} Rf4 {[%emt 0:00:23]} 48. a3 {[%emt 0:00:35]} Ra4 {[%emt 0:00:28]} 49. Rb3 {[%emt 0:00:28]} Ra5 {[%emt 0:00:37]} 50. Kd2 {[%emt 0:00:40]} Rg5 {[%emt 0:00:26]} 51. g3 {[%emt 0:00:21]} Ra5 {[%emt 0:00:44]} 52. Kc2 {[%emt 0:00:21]} Kf5 {[%emt 0:00:45]} 53. Kc3 {[%emt 0:00:28]} Ra8 {[%emt 0:00:32]} 54. Rb5+ {[%emt 0:00:25]} Kg6 {[%emt 0:00:24]} 55. Kb4 {[%emt 0:00:22]} h4 {[%emt 0:00:34]} 56. gxh4 {[%emt 0:00:28]} Kf6 {[%emt 0:00:31]} 57. a4 {[%emt 0:00:22]} Ke6 {[%emt 0:00:22]} 58. Rb6+ {[%emt 0:00:25]} Kd5 {[%emt 0:00:25]} 59. Kb5 {[%emt 0:00:22]} Rh8 {[%emt 0:00:29]} 60. a5 {[%emt 0:00:23]} Rxh4 {[%emt 0:00:41]} 61. a6 {[%emt 0:00:41]} Rxh3 1-0

[Event "Delancey UK Schools 2019 U14"]
[Site "Daventry"]
[Date "2019.09.24"]
[Round "1.12"]
[White "Jayanthi, Harshita"]
[Black "Kan, Toby"]
[Result "0-1"]
[ECO "A48"]
[WhiteElo "1217"]
[BlackElo "1714"]
[Annotator "NA"]
[PlyCount "66"]
[EventDate "2019.09.24"]
[EventCountry "GBR"]
[SourceTitle "playchess.com"]
[Source "ChessBase"]
[SourceQuality "1"]
[TimeControl "40/5400+30:1800+30"]

1. d4 {[%emt 1:10:12]} Nf6 {[%emt 1:10:11]} 2. Bf4 {[%emt 0:00:22]} b6 {[%emt 0:00:31]} 3. e3 {[%emt 0:00:41]} Bb7 {[%emt 0:00:25]} 4. Nf3 {[%emt 0:00:31]} g6 {[%emt 0:00:21]} 5. Be2 {[%emt 0:00:52]} Bg7 {[%emt 0:00:24]} 6. h3 {[%emt 0:00:38]} d6 {[%emt 0:00:34]} 7. O-O {[%emt 0:00:48]} O-O {[%emt 0:00:22]} 8. Nbd2 {[%emt 0:00:33]} Nbd7 {[%emt 0:00:25]} 9. Re1 {[%emt 0:00:52]} c5 {[%emt 0:00:56]} 10. c3 {[%emt 0:00:27]} a6 {[%emt 0:01:27]} 11. Rb1 {[%emt 0:01:12]} b5 {[%emt 0:00:59]} 12. Qc2 {[%emt 0:02:04]} Rc8 {[%emt 0:01:40]} 13. Rbc1 {[%emt 0:03:20]} Qb6 14. Red1 {[%emt 0:01:23]} Rfd8 {[%emt 0:06:08]} 15. Nf1 {[%emt 0:01:14]} c4 16. a3 {[%emt 0:02:08]} a5 {[%emt 0:01:22]} 17. Ra1 {[%emt 0:01:55]} Rc7 {[%emt 0:01:34]} 18. Ne1 {[%emt 0:00:23]} Rdc8 {[%emt 0:00:46]} 19. Bf3 {[%emt 0:01:40]} Bxf3 {[%emt 0:00:12]} 20. Nxf3 {[%emt 0:00:25]} b4 {[%emt 0:00:10]} 21. a4 {[%emt 0:00:00]} Nd5 {[%emt 0:04:58]} 22. Bh2 {[%emt 0:00:34]} bxc3 {[%emt 0:01:23]} 23. bxc3 {[%emt 0:00:41]} Qb3 {[%emt 0:00:21]} 24. Rdc1 {[%emt 0:01:37]} Qxc2 {[%emt 0:00:24]} 25. Rxc2 {[%emt 0:00:31]} Rb7 {[%emt 0:02:08]} 26. N1d2 {[%emt 0:00:00]} e5 {[%emt 0:02:49]} 27. dxe5 {[%emt 0:00:02]} dxe5 {[%emt 0:00:11]} 28. Ne4 {[%emt 0:00:54]} Rb3 {[%emt 0:00:09]} 29. Rd2 {[%emt 0:04:22]} N5b6 {[%emt 0:00:15]} 30. Rd6 {[%emt 0:01:58]} f5 {[%emt 0:01:01]} 31. Neg5 {[%emt 0:01:00]} h6 {[%emt 0:02:28]} 32. Ne6 {[%emt 0:01:02]} e4 {[%emt 0:00:48]} 33. Nfd4 {[%emt 0:00:59]} Rxc3 {[%emt 0:00:37]} 0-1

[Event "Delancey UK Schools 2019 U14"]
[Site "Daventry"]
[Date "2019.09.24"]
[Round "2.1"]
[White "Volovich, Julia"]
[Black "Ratnesan, Ranesh"]
[Result "0-1"]
[ECO "D17"]
[WhiteElo "1743"]
[BlackElo "2180"]
[Annotator "ChessBase"]
[PlyCount "70"]
[EventDate "2019.09.24"]
[EventCountry "GBR"]
[SourceTitle "playchess.com"]
[Source "ChessBase"]
[SourceQuality "1"]
[TimeControl "40/5400+30:1800+30"]

1. d4 {[%emt 1:10:43]} d5 {[%emt 1:10:33]} 2. c4 {[%emt 0:00:24]} c6 {[%emt 0:00:35]} 3. Nf3 {[%emt 0:00:23]} Nf6 {[%emt 0:00:23]} 4. Nc3 {[%emt 0:00:25]} dxc4 {[%emt 0:00:25]} 5. a4 {[%emt 0:00:24]} Bf5 {[%emt 0:00:29]} 6. Ne5 {[%emt 0:00:25]} Nbd7 {[%emt 0:00:29]} 7. Nxc4 {[%emt 0:00:29]} Qc7 {[%emt 0:00:28]} 8. g3 {[%emt 0:00:27]} e5 {[%emt 0:00:26]} 9. dxe5 {[%emt 0:00:31]} Nxe5 {[%emt 0:00:26]} 10. Bf4 {[%emt 0:00:29]} Nfd7 {[%emt 0:00:28]} 11. Bg2 {[%emt 0:00:37]} g5 {[%emt 0:00:31]} 12. Ne3 {[%emt 0:00:33]} gxf4 {[%emt 0:00:26]} 13. Nxf5 {[%emt 0:00:24]} O-O-O {[%emt 0:00:35]} 14. Qc2 {[%emt 0:00:26]} Bb4 {[%emt 0:00:28]} 15. O-O {[%emt 0:01:37]} fxg3 {[%emt 0:01:44]} 16. hxg3 {[%emt 0:00:43]} Kb8 {[%emt 0:01:37]} 17. Rfd1 {[%emt 0:03:16]} h5 {[%emt 0:02:14]} 18. Ne4 {[%emt 0:03:22]} a5 {[%emt 0:02:12]} 19. Rac1 {[%emt 0:04:42]} Ng6 {[%emt 0:02:58]} 20. Ned6 {[%emt 0:01:54]} Nde5 {[%emt 0:00:39]} 21. Nc4 {[%emt 0:00:59]} Rxd1+ {[%emt 0:04:09]} 22. Rxd1 {[%emt 0:00:35]} h4 {[%emt 0:00:41]} 23. Nxe5 {[%emt 0:04:49]} Qxe5 {[%emt 0:00:27]} 24. Rd7 {[%emt 0:01:35]} Qe6 {[%emt 0:01:07]} 25. Qd3 {[%emt 0:00:37]} Ne5 {[%emt 0:01:33]} 26. Rd8+ {[%emt 0:00:22]} Kc7 {[%emt 0:00:28]} 27. Ng7 {[%emt 0:01:12]} Qe7 {[%emt 0:01:59]} 28. Rxh8 {[%emt 0:00:55]} Nxd3 {[%emt 0:00:25]} 29. exd3 {[%emt 0:00:22]} hxg3 {[%emt 0:00:33]} 30. fxg3 {[%emt 0:00:55]} Qe5 {[%emt 0:00:58]} 31. Ne8+ {[%emt 0:00:44]} Kb6 {[%emt 0:00:20]} 32. Rh7 {[%emt 0:00:22]} Qxe8 {[%emt 0:00:24]} 33. Kf2 {[%emt 0:00:24]} Bc5+ {[%emt 0:00:23]} 34. Kf1 {[%emt 0:00:28]} Qe6 {[%emt 0:00:29]} 35. Be4 {[%emt 0:00:22]} Qf6+ {[%emt 0:00:27]} 0-1

[Event "Delancey UK Schools 2019 U14"]
[Site "Daventry"]
[Date "2019.09.24"]
[Round "2.2"]
[White "Balaji, Aaravamudhan"]
[Black "Bansal, Saahil"]
[Result "1-0"]
[ECO "E24"]
[WhiteElo "2086"]
[BlackElo "1655"]
[Annotator "NA"]
[PlyCount "99"]
[EventDate "2019.09.24"]
[EventCountry "GBR"]
[SourceTitle "playchess.com"]
[Source "ChessBase"]
[SourceQuality "1"]
[TimeControl "40/5400+30:1800+30"]

1. d4 {[%emt 1:10:11]} Nf6 {[%emt 1:10:12]} 2. c4 {[%emt 0:00:21]} e6 {[%emt 0:00:21]} 3. Nc3 {[%emt 0:00:21]} Bb4 {[%emt 0:00:21]} 4. a3 {[%emt 0:00:20]} Bxc3+ 5. bxc3 {[%emt 0:00:21]} b6 {[%emt 0:00:57]} 6. f3 {[%emt 0:00:29]} Bb7 {[%emt 0:01:05]} 7. e4 {[%emt 0:00:28]} d6 {[%emt 0:00:30]} 8. Bd3 {[%emt 0:01:12]} Nbd7 {[%emt 0:00:32]} 9. Ne2 {[%emt 0:00:31]} O-O {[%emt 0:00:29]} 10. O-O {[%emt 0:00:41]} h6 {[%emt 0:00:39]} 11. Ng3 {[%emt 0:00:42]} e5 {[%emt 0:01:17]} 12. Nf5 {[%emt 0:02:11]} Kh7 {[%emt 0:01:12]} 13. Qe1 {[%emt 0:01:25]} Ng8 {[%emt 0:03:18]} 14. f4 {[%emt 0:03:45]} Ne7 {[%emt 0:01:24]} 15. fxe5 {[%emt 0:05:08]} dxe5 {[%emt 0:00:22]} 16. Qg3 {[%emt 0:02:19]} Nxf5 {[%emt 0:01:17]} 17. exf5 {[%emt 0:01:21]} e4 {[%emt 0:00:21]} 18. Bc2 {[%emt 0:00:37]} Nf6 {[%emt 0:00:41]} 19. Bf4 {[%emt 0:01:23]} c5 {[%emt 0:01:15]} 20. d5 {[%emt 0:01:28]} Ba6 {[%emt 0:00:48]} 21. Bb3 {[%emt 0:01:03]} Nh5 {[%emt 0:00:55]} 22. Qe3 {[%emt 0:00:55]} Re8 {[%emt 0:00:39]} 23. Ba4 {[%emt 0:01:20]} Nxf4 {[%emt 0:03:16]} 24. Bxe8 {[%emt 0:01:05]} Nxd5 {[%emt 0:00:21]} 25. cxd5 {[%emt 0:01:11]} Bxf1 {[%emt 0:00:40]} 26. Bc6 {[%emt 0:00:59]} Bd3 {[%emt 0:00:30]} 27. Bxa8 {[%emt 0:00:39]} Qxa8 {[%emt 0:00:21]} 28. d6 {[%emt 0:00:21]} Qc6 {[%emt 0:00:48]} 29. Qf4 {[%emt 0:00:57]} f6 {[%emt 0:00:22]} 30. h4 {[%emt 0:00:38]} Kg8 {[%emt 0:00:22]} 31. Kf2 {[%emt 0:00:25]} Kf7 {[%emt 0:00:24]} 32. g4 {[%emt 0:00:27]} c4 {[%emt 0:00:15]} 33. Re1 {[%emt 0:00:47]} Qc5+ {[%emt 0:00:59]} 34. Kg3 {[%emt 0:00:27]} Ke8 {[%emt 0:01:43]} 35. g5 {[%emt 0:00:44]} hxg5 {[%emt 0:00:22]} 36. hxg5 {[%emt 0:00:21]} fxg5 {[%emt 0:00:21]} 37. Rxe4+ {[%emt 0:00:40]} Bxe4 {[%emt 0:01:18]} 38. Qxe4+ {[%emt 0:00:21]} Kd7 {[%emt 0:00:21]} 39. Qe7+ {[%emt 0:00:37]} Kc6 {[%emt 0:00:23]} 40. Qc7+ {[%emt 0:00:28]} Kd5 {[%emt 0:00:21]} 41. Qxc5+ {[%emt 0:30:27]} Kxc5 {[%emt 0:00:01]} 42. d7 Kc6 {[%emt 0:30:42]} 43. d8=Q {[%emt 0:00:43]} Kb7 {[%emt 0:00:21]} 44. Qxg5 {[%emt 0:00:24]} a5 {[%emt 0:00:21]} 45. Qxg7+ {[%emt 0:00:22]} Ka6 {[%emt 0:00:20]} 46. f6 {[%emt 0:00:21]} b5 {[%emt 0:00:21]} 47. f7 {[%emt 0:00:22]} b4 {[%emt 0:00:21]} 48. a4 {[%emt 0:00:23]} b3 {[%emt 0:00:22]} 49. f8=Q {[%emt 0:00:22]} b2 {[%emt 0:00:22]} 50. Qd6# {[%emt 0:00:26]} 1-0

[Event "Delancey UK Schools 2019 U14"]
[Site "Daventry"]
[Date "2019.09.24"]
[Round "2.3"]
[White "Kan, Toby"]
[Black "Saidmurodov, Shahjahon"]
[Result "1-0"]
[ECO "C51"]
[WhiteElo "1714"]
[BlackElo "1782"]
[Annotator "NA"]
[PlyCount "99"]
[EventDate "2019.09.24"]
[EventCountry "GBR"]
[SourceTitle "playchess.com"]
[Source "ChessBase"]
[SourceQuality "1"]
[TimeControl "40/5400+30:1800+30"]

1. e4 {[%emt 1:10:12]} e5 {[%emt 1:10:14]} 2. Nf3 {[%emt 0:00:01]} Nc6 3. Bc4 {[%emt 0:00:43]} Bc5 {[%emt 0:00:41]} 4. b4 {[%emt 0:00:20]} Nxb4 {[%emt 0:01:51]} 5. c3 {[%emt 0:02:52]} Nc6 {[%emt 0:01:53]} 6. d4 {[%emt 0:00:21]} exd4 {[%emt 0:00:29]} 7. O-O {[%emt 0:00:22]} d3 {[%emt 0:00:13]} 8. Ng5 {[%emt 0:00:02]} Ne5 {[%emt 0:01:58]} 9. Nxf7 {[%emt 0:00:49]} Nxf7 {[%emt 0:00:21]} 10. Bxf7+ {[%emt 0:00:02]} Kxf7 {[%emt 0:00:23]} 11. Qh5+ {[%emt 0:00:41]} Kf8 {[%emt 0:00:21]} 12. Qxc5+ {[%emt 0:00:21]} d6 {[%emt 0:00:25]} 13. Qc4 {[%emt 0:00:49]} Nf6 {[%emt 0:00:30]} 14. Qxd3 {[%emt 0:00:34]} Qe7 {[%emt 0:00:27]} 15. Nd2 {[%emt 0:00:57]} Kf7 {[%emt 0:00:37]} 16. Ba3 {[%emt 0:00:34]} Re8 {[%emt 0:00:42]} 17. Rfe1 {[%emt 0:00:40]} Qe5 {[%emt 0:01:09]} 18. Nf3 {[%emt 0:01:01]} Qh5 {[%emt 0:00:38]} 19. Qc4+ {[%emt 0:01:15]} Be6 {[%emt 0:04:14]} 20. Qxc7+ {[%emt 0:01:01]} Kg8 {[%emt 0:00:23]} 21. Qxd6 {[%emt 0:00:51]} Rad8 {[%emt 0:01:08]} 22. Qc5 {[%emt 0:01:11]} Rd3 {[%emt 0:05:32]} 23. Qxh5 {[%emt 0:02:04]} Nxh5 {[%emt 0:00:22]} 24. Bb4 {[%emt 0:00:42]} b6 {[%emt 0:01:56]} 25. Rad1 {[%emt 0:01:33]} Red8 {[%emt 0:00:34]} 26. Nd4 {[%emt 0:00:21]} Rxd1 {[%emt 0:00:46]} 27. Rxd1 {[%emt 0:00:23]} Bxa2 {[%emt 0:00:21]} 28. Ra1 {[%emt 0:02:08]} a5 {[%emt 0:00:31]} 29. Ba3 {[%emt 0:00:21]} Bc4 {[%emt 0:00:32]} 30. Bb2 {[%emt 0:01:51]} Nf4 {[%emt 0:00:39]} 31. f3 {[%emt 0:02:05]} Nd3 {[%emt 0:00:29]} 32. Bc1 {[%emt 0:01:06]} Nxc1 {[%emt 0:00:39]} 33. Rxc1 {[%emt 0:00:26]} a4 {[%emt 0:01:27]} 34. Ra1 {[%emt 0:02:09]} b5 {[%emt 0:00:40]} 35. Ra3 {[%emt 0:01:20]} Rxd4 {[%emt 0:01:05]} 36. cxd4 {[%emt 0:00:28]} Bb3 {[%emt 0:00:23]} 37. Kf2 {[%emt 0:00:55]} b4 {[%emt 0:00:21]} 38. Ra1 {[%emt 0:00:45]} a3 {[%emt 0:00:37]} 39. Rb1 {[%emt 0:01:22]} a2 {[%emt 0:00:31]} 40. Rxb3 {[%emt 0:00:55]} a1=Q {[%emt 0:00:22]} 41. Rxb4 {[%emt 0:30:29]} Qc3 {[%emt 0:30:54]} 42. Rb8+ {[%emt 0:00:38]} Kf7 {[%emt 0:00:23]} 43. d5 {[%emt 0:00:41]} Qd2+ {[%emt 0:00:37]} 44. Kg3 {[%emt 0:00:36]} g5 {[%emt 0:00:22]} 45. Rb7+ {[%emt 0:00:40]} Kg6 {[%emt 0:00:28]} 46. Rb6+ {[%emt 0:00:42]} Kh5 {[%emt 0:00:49]} 47. h3 {[%emt 0:00:41]} Qf4+ {[%emt 0:00:49]} 48. Kf2 {[%emt 0:00:17]} Qe5 {[%emt 0:00:35]} 49. g4+ {[%emt 0:00:48]} Kh4 {[%emt 0:00:30]} 50. Rh6# {[%emt 0:00:01]} 1-0

[Event "Delancey UK Schools 2019 U14"]
[Site "Daventry"]
[Date "2019.09.24"]
[Round "2.4"]
[White "Hosdurga, Chirag"]
[Black "Weersing, Abigail Riis"]
[Result "1-0"]
[ECO "D91"]
[WhiteElo "1786"]
[BlackElo "1734"]
[Annotator "NA"]
[PlyCount "61"]
[EventDate "2019.09.24"]
[EventCountry "GBR"]
[SourceTitle "playchess.com"]
[Source "ChessBase"]
[SourceQuality "1"]
[TimeControl "40/5400+30:1800+30"]

1. Nf3 {[%emt 1:10:11]} Nf6 {[%emt 1:10:12]} 2. c4 {[%emt 0:00:21]} g6 {[%emt 0:00:22]} 3. d4 {[%emt 0:00:22]} d5 {[%emt 0:00:27]} 4. Nc3 {[%emt 0:00:22]} c6 {[%emt 0:00:51]} 5. Bg5 {[%emt 0:00:51]} Bg7 {[%emt 0:00:43]} 6. e3 {[%emt 0:00:26]} Bg4 {[%emt 0:00:29]} 7. Be2 {[%emt 0:00:56]} O-O {[%emt 0:01:25]} 8. O-O {[%emt 0:01:44]} Nbd7 {[%emt 0:01:12]} 9. cxd5 {[%emt 0:00:50]} Nxd5 {[%emt 0:02:01]} 10. h3 {[%emt 0:03:11]} Be6 {[%emt 0:02:38]} 11. e4 {[%emt 0:00:41]} Nxc3 {[%emt 0:00:53]} 12. bxc3 {[%emt 0:00:21]} Nf6 {[%emt 0:00:56]} 13. Nd2 {[%emt 0:01:11]} Qd7 {[%emt 0:04:44]} 14. Bxf6 {[%emt 0:05:55]} Bxf6 {[%emt 0:00:32]} 15. Qc2 {[%emt 0:01:13]} c5 {[%emt 0:01:43]} 16. e5 {[%emt 0:02:07]} Bg7 {[%emt 0:00:27]} 17. Nb3 {[%emt 0:00:48]} Bxb3 {[%emt 0:00:50]} 18. axb3 {[%emt 0:00:21]} Qc7 {[%emt 0:00:27]} 19. Qe4 {[%emt 0:01:11]} Rfd8 {[%emt 0:02:35]} 20. f4 {[%emt 0:00:45]} cxd4 {[%emt 0:00:53]} 21. cxd4 {[%emt 0:00:21]} Qb6 {[%emt 0:00:16]} 22. Rad1 {[%emt 0:01:04]} Qxb3 {[%emt 0:01:53]} 23. Kh1 {[%emt 0:00:21]} Qb6 {[%emt 0:02:19]} 24. d5 Rac8 {[%emt 0:00:30]} 25. Bg4 {[%emt 0:02:02]} Rc3 {[%emt 0:00:50]} 26. Rfe1 {[%emt 0:01:45]} h5 {[%emt 0:01:21]} 27. Bf3 {[%emt 0:00:26]} Rdc8 {[%emt 0:02:11]} 28. d6 {[%emt 0:02:32]} exd6 {[%emt 0:00:00]} 29. Rxd6 {[%emt 0:00:23]} Qf2 {[%emt 0:00:00]} 30. Red1 {[%emt 0:01:11]} b6 {[%emt 0:00:31]} 31. e6 {[%emt 0:00:53]} 1-0

[Event "Delancey UK Schools 2019 U14"]
[Site "Daventry"]
[Date "2019.09.24"]
[Round "2.6"]
[White "Yoon, Jacob D"]
[Black "Akeya-Price, Robert"]
[Result "0-1"]
[ECO "D00"]
[WhiteElo "2086"]
[BlackElo "1892"]
[Annotator "NA"]
[PlyCount "75"]
[EventDate "2019.09.24"]
[EventCountry "GBR"]
[SourceTitle "playchess.com"]
[Source "ChessBase"]
[SourceQuality "1"]
[TimeControl "40/5400+30:1800+30"]

1. d4 {[%emt 1:10:10]} Nf6 {[%emt 1:10:12]} 2. Nc3 {[%emt 0:00:21]} d5 {[%emt 0:00:23]} 3. Bf4 {[%emt 0:00:21]} c6 {[%emt 0:00:35]} 4. f3 {[%emt 0:00:22]} e6 {[%emt 0:02:59]} 5. e4 {[%emt 0:00:29]} Bb4 {[%emt 0:01:30]} 6. e5 {[%emt 0:01:38]} Nfd7 {[%emt 0:02:06]} 7. a3 {[%emt 0:01:51]} Be7 {[%emt 0:00:50]} 8. Nb1 {[%emt 0:07:35]} Qa5+ {[%emt 0:03:51]} 9. c3 {[%emt 0:00:50]} c5 {[%emt 0:01:03]} 10. Nd2 {[%emt 0:01:30]} Qb6 {[%emt 0:01:18]} 11. Qc2 {[%emt 0:01:59]} Nc6 {[%emt 0:00:54]} 12. dxc5 {[%emt 0:03:20]} Bxc5 {[%emt 0:00:34]} 13. Nh3 {[%emt 0:00:30]} Ncxe5 {[%emt 0:01:37]} 14. Bxe5 {[%emt 0:00:36]} Nxe5 {[%emt 0:00:22]} 15. O-O-O {[%emt 0:01:07]} Bd7 {[%emt 0:00:51]} 16. Be2 {[%emt 0:01:33]} Bb5 {[%emt 0:04:04]} 17. Rhe1 {[%emt 0:01:03]} Ng6 {[%emt 0:01:30]} 18. f4 {[%emt 0:02:04]} Ne7 {[%emt 0:00:28]} 19. f5 {[%emt 0:01:04]} Bxe2 {[%emt 0:00:53]} 20. Rxe2 {[%emt 0:00:24]} O-O-O {[%emt 0:03:26]} 21. fxe6 {[%emt 0:01:08]} fxe6 {[%emt 0:00:23]} 22. Ng5 {[%emt 0:00:28]} Be3 {[%emt 0:00:54]} 23. Nf7 {[%emt 0:00:38]} Rhf8 {[%emt 0:00:27]} 24. Nxd8 {[%emt 0:00:22]} Rxd8 {[%emt 0:00:24]} 25. Kb1 {[%emt 0:00:31]} Nf5 {[%emt 0:00:37]} 26. g4 {[%emt 0:00:31]} Nd6 {[%emt 0:00:34]} 27. Nf1 {[%emt 0:00:54]} Nc4 {[%emt 0:00:30]} 28. Ka2 {[%emt 0:00:29]} Bc5 {[%emt 0:00:27]} 29. Rde1 {[%emt 0:00:30]} Re8 {[%emt 0:00:27]} 30. Nd2 {[%emt 0:00:22]} Ne3 {[%emt 0:00:25]} 31. Qd3 {[%emt 0:00:36]} Nxg4 {[%emt 0:00:27]} 32. h3 {[%emt 0:00:28]} Nf6 {[%emt 0:00:24]} 33. Nb3 {[%emt 0:00:35]} Bd6 {[%emt 0:00:32]} 34. Rxe6 {[%emt 0:00:26]} Rxe6 {[%emt 0:00:36]} 35. Rxe6 {[%emt 0:00:22]} Kd7 {[%emt 0:00:24]} 36. Qf5 {[%emt 0:00:25]} Kc7 {[%emt 0:00:41]} 37. Nd4 {[%emt 0:00:43]} Qc5 {[%emt 0:00:31]} 38. Rxf6 {[%emt 0:00:16]} 0-1